fUST/lending_fUST_20240721
["ID","MTS","AMOUNT","RATE_DAILY","PERIOD"]
[332807833,1721539839197,-635.10895054,0.00013698,2]
[332807834,1721539839207,-366.18077599,0.00013698,2]
[332807835,1721539839217,-500.0,0.00013698,2]
[332807836,1721539839226,-500.0,0.00013698,2]
[332807837,1721539839236,-500.0,0.00013698,2]
[332807838,1721539839245,-500.0,0.00013698,2]
[332807839,1721539839254,-291.18737094,0.00013698,2]
[332807840,1721539839264,-297.39668351,0.00013698,2]
[332807841,1721539839273,-310.81795827,0.00013698,2]
[332807842,1721539839282,-500.0,0.00013698,2]
[332807843,1721539839292,-500.0,0.00013698,2]
[332807844,1721539839301,-500.0,0.00013698,2]
[332807845,1721539839311,-500.0,0.00013698,2]
[332807846,1721539839321,-500.0,0.00013698,2]
[332807847,1721539839331,-500.6716079,0.00013698,2]
[332807848,1721539839341,-509.5921109,0.00013698,2]
[332807849,1721539839350,-500.0,0.00013698,2]
[332807850,1721539839359,-169.1445557,0.00013698,2]
[332807851,1721539839369,-500.0,0.00013698,2]
[332807852,1721539839380,-500.0,0.00013698,2]
[332807853,1721539839390,-500.0,0.00013698,2]
[332807854,1721539839399,-500.0,0.00013698,2]
[332807855,1721539839409,-500.0,0.00013698,2]
[332807856,1721539839418,-833.42,0.00013698,2]
[332807857,1721539839427,-500.0,0.00013698,2]
[332807858,1721539839437,-500.0,0.00013698,2]
[332807859,1721539839446,-504.47672826,0.00013698,2]
[332807860,1721539839455,-548.5574355,0.00013698,2]
[332807861,1721539839466,-704.59,0.00013698,2]
[332807862,1721539839476,-503.48450541,0.00013698,2]
[332807863,1721539839485,-500.0,0.00013698,2]
[332807864,1721539839495,-500.0,0.00013698,2]
[332807865,1721539839504,-549.44249612,0.00013698,2]
[332807866,1721539839513,-573.92873852,0.00013698,2]
[332807867,1721539839523,-909.52,0.00013698,2]
[332807868,1721539839533,-861.29,0.00013698,2]
[332807869,1721539839543,-500.0,0.00013698,2]
[332807870,1721539839551,-500.0,0.00013698,2]
[332807871,1721539839561,-500.0,0.00013698,2]
[332807872,1721539839570,-500.0,0.00013698,2]
[332807873,1721539839579,-500.0,0.00013698,2]
[332807874,1721539839589,-500.0,0.00013698,2]
[332807875,1721539839599,-500.0,0.00013698,2]
[332807876,1721539839608,-500.0,0.00013698,2]
[332807877,1721539839617,-500.0,0.00013698,2]
[332807878,1721539839627,-518.81684462,0.00013698,2]
[332807879,1721539839636,-500.0,0.00013698,2]
[332807880,1721539839646,-500.0,0.00013698,2]
[332807881,1721539839659,-500.0,0.00013698,2]
[332807882,1721539839668,-500.0,0.00013698,2]
[332807883,1721539839678,-501.44774616,0.00013698,2]
[332807884,1721539839688,-500.0,0.00013698,2]
[332807885,1721539839698,-500.0,0.00013698,2]
[332807886,1721539839708,-597.02,0.00013698,2]
[332807887,1721539839717,-500.0,0.00013698,2]
[332807888,1721539839726,-500.0,0.00013698,2]
[332807889,1721539839738,-500.0,0.00013698,2]
[332807890,1721539839748,-504.08045759,0.00013698,2]
[332807891,1721539839757,-509.85901008,0.00013698,2]
[332807892,1721539839767,-894.75,0.00013698,2]
[332807893,1721539839776,-547.13910122,0.00013698,2]
[332807894,1721539839786,-500.0,0.00013698,2]
[332807895,1721539839796,-500.0,0.00013698,2]
[332807896,1721539839805,-503.29603639,0.00013698,2]
[332807897,1721539839814,-500.0,0.00013698,2]
[332807898,1721539839823,-500.0,0.00013698,2]
[332807899,1721539839834,-710.22,0.00013698,2]
[332807900,1721539839843,-524.77,0.00013698,2]
[332807901,1721539839852,-500.0,0.00013698,2]
[332807902,1721539839861,-500.0,0.00013698,2]
[332807903,1721539839871,-500.0,0.00013698,2]
[332807904,1721539839880,-500.0,0.00013698,2]
[332807905,1721539839889,-500.0,0.00013698,2]
[332807906,1721539839899,-500.0,0.00013698,2]
[332807907,1721539839908,-500.0,0.00013698,2]
[332807908,1721539839918,-500.0,0.00013698,2]
[332807909,1721539839928,-500.0,0.00013698,2]
[332807910,1721539839937,-500.0,0.00013698,2]
[332807911,1721539839948,-500.0,0.00013698,2]
[332807912,1721539839957,-500.0,0.00013698,2]
[332807913,1721539839967,-500.0,0.00013698,2]
[332807914,1721539839976,-500.0,0.00013698,2]
[332807915,1721539839986,-501.84,0.00013698,2]
[332807916,1721539839996,-500.0,0.00013698,2]
[332807917,1721539840006,-500.0,0.00013698,2]
[332807918,1721539840015,-500.0,0.00013698,2]
[332807919,1721539840025,-500.0,0.00013698,2]
[332807920,1721539840034,-1142.27,0.00013698,2]
[332807921,1721539840043,-500.0,0.00013698,2]
[332807922,1721539840052,-244.92214874,0.00013698,2]
[332807923,1721539840061,-500.0,0.00013698,2]
[332807924,1721539840071,-500.0,0.00013698,2]
[332807925,1721539840080,-500.0,0.00013698,2]
[332807926,1721539840090,-549.83,0.00013698,2]
[332807927,1721539840099,-500.0,0.00013698,2]
[332807928,1721539840109,-500.0,0.00013698,2]
[332807929,1721539840118,-500.0,0.00013698,2]
[332807930,1721539840127,-500.0,0.00013698,2]
[332807931,1721539840136,-500.0,0.00013698,2]
[332807932,1721539840145,-646.41911865,0.00013698,2]
[332807933,1721539840154,-500.0,0.00013698,2]
[332807934,1721539840164,-505.15585525,0.00013698,2]
[332807935,1721539840173,-500.0,0.00013698,2]
[332807936,1721539840182,-504.82506107,0.00013698,2]
[332807937,1721539840193,-500.0,0.00013698,2]
[332807938,1721539840204,-500.0,0.00013698,2]
[332807940,1721539840214,-500.0,0.00013698,2]
[332807942,1721539840223,-500.0,0.00013698,2]
[332807943,1721539840234,-500.0,0.00013698,2]
[332807944,1721539840243,-500.0,0.00013698,2]
[332807945,1721539840255,-500.0,0.00013698,2]
[332807946,1721539840265,-500.0,0.00013698,2]
[332807947,1721539840276,-500.0,0.00013698,2]
[332807948,1721539840286,-500.0,0.00013698,2]
[332807949,1721539840297,-500.0,0.00013698,2]
[332807951,1721539840307,-502.58812727,0.00013698,2]
[332807952,1721539840317,-500.0,0.00013698,2]
[332807953,1721539840326,-500.0,0.00013698,2]
[332807955,1721539840336,-506.40127866,0.00013698,2]
[332807958,1721539840346,-603.13559602,0.00013698,2]
[332807959,1721539840355,-500.0,0.00013698,2]
[332807960,1721539840364,-500.0,0.00013698,2]
[332807961,1721539840373,-500.0,0.00013698,2]
[332807962,1721539840382,-500.0,0.00013698,2]
[332807963,1721539840392,-500.0,0.00013698,2]
[332807964,1721539840402,-501.34951286,0.00013698,2]
[332807965,1721539840411,-500.0,0.00013698,2]
[332807966,1721539840420,-502.29925953,0.00013698,2]
[332807967,1721539840429,-500.0,0.00013698,2]
[332807968,1721539840438,-500.0,0.00013698,2]
[332807969,1721539840447,-500.0,0.00013698,2]
[332807970,1721539840456,-505.04722869,0.00013698,2]
[332807971,1721539840465,-500.0,0.00013698,2]
[332807973,1721539840474,-553.50097455,0.00013698,2]
[332807975,1721539840483,-506.8348777,0.00013698,2]
[332807977,1721539840492,-500.0,0.00013698,2]
[332807978,1721539840503,-518.78180993,0.00013698,2]
[332807979,1721539840512,-150.0,0.00013698,2]
[332807981,1721539840523,-506.67046312,0.00013698,2]
[332807983,1721539840532,-500.0,0.00013698,2]
[332807985,1721539840543,-581.31,0.00013698,2]
[332807986,1721539840553,-500.0,0.00013698,2]
[332807988,1721539840804,-500.0,0.00013698,2]
[332807989,1721539840813,-500.0,0.00013698,2]
[332807990,1721539840823,-500.0,0.00013698,2]
[332807991,1721539840833,-502.00450992,0.00013698,2]
[332807992,1721539840842,-501.05158394,0.00013698,2]
[332807993,1721539840852,-500.0,0.00013698,2]
[332807994,1721539840861,-500.0,0.00013698,2]
[332807995,1721539840871,-195.08991549,0.00013698,2]
[332807996,1721539840880,-500.0,0.00013698,2]
[332807997,1721539840889,-537.2978861,0.00013698,2]
[332807998,1721539840898,-500.0,0.00013698,2]
[332807999,1721539840908,-500.0,0.00013698,2]
[332808000,1721539840918,-500.0,0.00013698,2]
[332808001,1721539840927,-273.53253815,0.00013698,2]
[332808002,1721539840937,-502.72088124,0.00013698,2]
[332808003,1721539840946,-500.0,0.00013698,2]
[332808004,1721539840955,-503.40087268,0.00013698,2]
[332808005,1721539840965,-500.0,0.00013698,2]
[332808006,1721539840975,-500.0,0.00013698,2]
[332808007,1721539840985,-500.0,0.00013698,2]
[332808008,1721539840995,-500.0,0.00013698,2]
[332808009,1721539841004,-500.0,0.00013698,2]
[332808010,1721539841013,-500.0,0.00013698,2]
[332808011,1721539841022,-500.0,0.00013698,2]
[332808012,1721539841031,-277.30974389,0.00013698,2]
[332808013,1721539841041,-500.0,0.00013698,2]
[332808014,1721539841051,-500.0,0.00013698,2]
[332808015,1721539841060,-500.0,0.00013698,2]
[332808016,1721539841069,-485.26211001,0.00013698,2]
[332808017,1721539841078,-1012.95674876,0.00013698,2]
[332808018,1721539841089,-500.0,0.00013698,2]
[332808019,1721539841098,-500.0,0.00013698,2]
[332808020,1721539841111,-502.2429734,0.00013698,2]
[332808021,1721539841120,-746.29,0.00013698,2]
[332808022,1721539841129,-514.31104745,0.00013698,2]
[332808023,1721539841137,-500.0,0.00013698,2]
[332808024,1721539841146,-543.78739897,0.00013698,2]
[332808025,1721539841156,-502.47574919,0.00013698,2]
[332808026,1721539841165,-500.0,0.00013698,2]
[332808027,1721539841174,-500.0,0.00013698,2]
[332808028,1721539841183,-503.5797547,0.00013698,2]
[332808029,1721539841194,-500.0,0.00013698,2]
[332808030,1721539841203,-500.0,0.00013698,2]
[332808031,1721539841214,-668.99,0.00013698,2]
[332808032,1721539841224,-488.60007628,0.00013698,2]
[332808033,1721539841234,-500.0,0.00013698,2]
[332808034,1721539841244,-500.0,0.00013698,2]
[332808035,1721539841254,-500.0,0.00013698,2]
[332808036,1721539841265,-506.56216054,0.00013698,2]
[332808037,1721539841276,-257.77649434,0.00013698,2]
[332808038,1721539841287,-500.0,0.00013698,2]
[332808039,1721539841297,-500.0,0.00013698,2]
[332808040,1721539841307,-500.0,0.00013698,2]
[332808041,1721539841317,-500.0,0.00013698,2]
[332808042,1721539841326,-500.0,0.00013698,2]
[332808043,1721539841337,-506.405325,0.00013698,2]
[332808044,1721539841347,-500.0,0.00013698,2]
[332808045,1721539841357,-500.0,0.00013698,2]
[332808046,1721539841367,-500.0,0.00013698,2]
[332808047,1721539841377,-502.47704321,0.00013698,2]
[332808048,1721539841388,-511.49784745,0.00013698,2]
[332808049,1721539841400,-500.0,0.00013698,2]
[332808050,1721539841410,-500.0,0.00013698,2]
[332808051,1721539841420,-500.0,0.00013698,2]
[332808052,1721539841431,-512.64,0.00013698,2]
[332808053,1721539841441,-500.0,0.00013698,2]
[332808054,1721539841451,-513.98373387,0.00013698,2]
[332808055,1721539841460,-745.98,0.00013698,2]
[332808056,1721539841470,-1472.91,0.00013698,2]
[332808057,1721539841480,-500.0,0.00013698,2]
[332808058,1721539841489,-500.0,0.00013698,2]
[332808059,1721539841499,-500.0,0.00013698,2]
[332808060,1721539841509,-259.96589553,0.00013698,2]
[332808061,1721539841519,-500.0,0.00013698,2]
[332808062,1721539841528,-500.97080716,0.00013698,2]
[332808063,1721539841538,-500.0,0.00013698,2]
[332808064,1721539841548,-500.0,0.00013698,2]
[332808065,1721539841557,-500.0,0.00013698,2]
[332808066,1721539841567,-515.52,0.00013698,2]
[332808067,1721539841576,-483.36756744,0.00013698,2]
[332808068,1721539841590,-370.00262806,0.00013698,2]
[332808069,1721539841599,-2642.68,0.00013698,2]
[332808070,1721539841611,-500.0,0.00013698,2]
[332808071,1721539841620,-500.0,0.00013698,2]
[332808072,1721539841629,-500.0,0.00013698,2]
[332808073,1721539841639,-556.1923739,0.00013698,2]
[332808074,1721539841647,-1816.29,0.00013698,2]
[332808075,1721539841658,-1733.66,0.00013698,2]
[332808076,1721539841668,-580.45,0.00013698,2]
[332808077,1721539841677,-199.22803893,0.00013698,2]
[332808078,1721539841687,-513.23170006,0.00013698,2]
[332808079,1721539841697,-556.54,0.00013698,2]
[332808080,1721539841708,-502.90682651,0.00013698,2]
[332808081,1721539841717,-596.36,0.00013698,2]
[332808082,1721539841727,-500.0,0.00013698,2]
[332808083,1721539841741,-521.58,0.00013698,2]
[332808084,1721539841750,-271.74760283,0.00013698,2]
[332808085,1721539841762,-1970.43,0.00013698,2]
[332808086,1721539841773,-1146.38,0.00013698,2]
[332808087,1721539841784,-502.58801939,0.00013698,2]
[332808088,1721539841794,-500.0,0.00013698,2]
[332808089,1721539841803,-500.0,0.00013698,2]
[332808090,1721539841813,-727.34,0.00013698,2]
[332808091,1721539841822,-500.0,0.00013698,2]
[332808092,1721539841832,-500.0,0.00013698,2]
[332808093,1721539841842,-500.0,0.00013698,2]
[332808094,1721539841854,-500.0,0.00013698,2]
[332808095,1721539841865,-500.0,0.00013698,2]
[332808096,1721539841875,-500.0,0.00013698,2]
[332808097,1721539841885,-500.0,0.00013698,2]
[332808098,1721539841895,-500.0,0.00013698,2]
[332808099,1721539841905,-500.0,0.00013698,2]
[332808100,1721539841915,-500.0,0.00013698,2]
[332808101,1721539841926,-500.0,0.00013698,2]
[332808102,1721539841937,-500.0,0.00013698,2]
[332808103,1721539841948,-500.0,0.00013698,2]
[332808104,1721539841959,-500.0,0.00013698,2]
[332808105,1721539841971,-502.0283174,0.00013698,2]
[332808106,1721539841981,-500.0,0.00013698,2]
[332808107,1721539841990,-500.0,0.00013698,2]
[332808108,1721539842000,-500.0,0.00013698,2]
[332808109,1721539842009,-591.97,0.00013698,2]
[332808110,1721539842018,-522.19846751,0.00013698,2]
[332808111,1721539842028,-500.0,0.00013698,2]
[332808112,1721539842037,-500.0,0.00013698,2]
[332808113,1721539842047,-633.18,0.00013698,2]
[332808114,1721539842056,-502.00479006,0.00013698,2]
[332808115,1721539842066,-2598.13,0.00013698,2]
[332808116,1721539842076,-437.67194213,0.00013698,2]
[332808117,1721539842086,-500.0,0.00013698,2]
[332808118,1721539842095,-500.0,0.00013698,2]
[332808119,1721539842105,-500.0,0.00013698,2]
[332808120,1721539842114,-500.0,0.00013698,2]
[332808121,1721539842123,-1170.18,0.00013698,2]
[332808122,1721539842133,-500.0,0.00013698,2]
[332808123,1721539842142,-772.52,0.00013698,2]
[332808124,1721539842152,-759.39,0.00013698,2]
[332808125,1721539842162,-500.0,0.00013698,2]
[332808126,1721539842171,-500.0,0.00013698,2]
[332808127,1721539842180,-500.0,0.00013698,2]
[332808128,1721539842190,-502.06907572,0.00013698,2]
[332808129,1721539842203,-500.0,0.00013698,2]
[332808130,1721539842214,-888.28,0.00013698,2]
[332808131,1721539842224,-500.0,0.00013698,2]
[332808132,1721539842234,-500.0,0.00013698,2]
[332808133,1721539842243,-500.0,0.00013698,2]
[332808134,1721539842252,-504.28120277,0.00013698,2]
[332808135,1721539842263,-500.0,0.00013698,2]
[332808136,1721539842274,-501.53767902,0.00013698,2]
[332808137,1721539842283,-500.0,0.00013698,2]
[332808138,1721539842293,-500.81339104,0.00013698,2]
[332808139,1721539842303,-500.0,0.00013698,2]
[332808140,1721539842316,-500.0,0.00013698,2]
[332808141,1721539842327,-500.0,0.00013698,2]
[332808142,1721539842339,-500.0,0.00013698,2]
[332808143,1721539842351,-500.0,0.00013698,2]
[332808144,1721539842360,-500.0,0.00013698,2]
[332808145,1721539842371,-500.0,0.00013698,2]
[332808146,1721539842381,-500.0,0.00013698,2]
[332808147,1721539842391,-500.0,0.00013698,2]
[332808148,1721539842400,-500.0,0.00013698,2]
[332808149,1721539842411,-500.0,0.00013698,2]
[332808150,1721539842422,-500.0,0.00013698,2]
[332808151,1721539842432,-797.01,0.00013698,2]
[332808152,1721539842441,-500.0,0.00013698,2]
[332808153,1721539842452,-500.0,0.00013698,2]
[332808154,1721539842466,-500.0,0.00013698,2]
[332808155,1721539842478,-500.0,0.00013698,2]
[332808156,1721539842489,-500.0,0.00013698,2]
[332808157,1721539842500,-540.58,0.00013698,2]
[332808158,1721539842511,-533.52,0.00013698,2]
[332808159,1721539842523,-500.0,0.00013698,2]
[332808160,1721539842534,-500.0,0.00013698,2]
[332808161,1721539842544,-500.0,0.00013698,2]
[332808162,1721539842553,-500.0,0.00013698,2]
[332808163,1721539842563,-525.86400659,0.00013698,2]
[332808164,1721539842574,-534.84,0.00013698,2]
[332808165,1721539842585,-1018.72,0.00013698,2]
[332808166,1721539842594,-500.0,0.00013698,2]
[332808167,1721539842604,-500.0,0.00013698,2]
[332808168,1721539842614,-500.0,0.00013698,2]
[332808169,1721539842623,-1736.04,0.00013698,2]
[332808170,1721539842633,-500.0,0.00013698,2]
[332808171,1721539842642,-500.0,0.00013698,2]
[332808172,1721539842651,-533.14,0.00013698,2]
[332808173,1721539842664,-500.0,0.00013698,2]
[332808174,1721539842673,-500.0,0.00013698,2]
[332808175,1721539842683,-508.74971259,0.00013698,2]
[332808176,1721539842693,-500.0,0.00013698,2]
[332808177,1721539842703,-500.0,0.00013698,2]
[332808178,1721539842712,-500.0,0.00013698,2]
[332808179,1721539842722,-1682.43,0.00013698,2]
[332808180,1721539842731,-500.0,0.00013698,2]
[332808181,1721539842742,-338.59133291,0.00013698,2]
[332808182,1721539842752,-578.55,0.00013698,2]
[332808183,1721539842761,-500.0,0.00013698,2]
[332808184,1721539842771,-500.0,0.00013698,2]
[332808185,1721539842780,-762.99,0.00013698,2]
[332808186,1721539842790,-614.64,0.00013698,2]
[332808187,1721539842799,-857.4,0.00013698,2]
[332808188,1721539842808,-502.85,0.00013698,2]
[332808189,1721539842818,-500.0,0.00013698,2]
[332808190,1721539842827,-500.0,0.00013698,2]
[332808191,1721539842838,-500.0,0.00013698,2]
[332808192,1721539842847,-500.0,0.00013698,2]
[332808193,1721539842856,-500.0,0.00013698,2]
[332808194,1721539842865,-500.0,0.00013698,2]
[332808195,1721539842875,-756.27,0.00013698,2]
[332808196,1721539842884,-500.0,0.00013698,2]
[332808197,1721539842894,-500.0,0.00013698,2]
[332808198,1721539842904,-500.0,0.00013698,2]
[332808199,1721539842913,-988.93,0.00013698,2]
[332808200,1721539842924,-3834.21,0.00013698,2]
[332808201,1721539842933,-500.0,0.00013698,2]
[332808202,1721539842942,-500.0,0.00013698,2]
[332808203,1721539842951,-500.0,0.00013698,2]
[332808204,1721539842960,-500.0,0.00013698,2]
[332808205,1721539842970,-662.1,0.00013698,2]
[332808206,1721539842979,-844.25,0.00013698,2]
[332808207,1721539842989,-500.0,0.00013698,2]
[332808208,1721539842998,-500.0,0.00013698,2]
[332808209,1721539843008,-500.0,0.00013698,2]
[332808210,1721539843017,-500.0,0.00013698,2]
[332808211,1721539843026,-500.0,0.00013698,2]
[332808212,1721539843035,-500.0,0.00013698,2]
[332808213,1721539843044,-500.0,0.00013698,2]
[332808214,1721539843054,-500.0,0.00013698,2]
[332808215,1721539843066,-1172.88,0.00013698,2]
[332808216,1721539843076,-500.0,0.00013698,2]
[332808217,1721539843086,-500.0,0.00013698,2]
[332808218,1721539843096,-500.0,0.00013698,2]
[332808220,1721539843105,-500.0,0.00013698,2]
[332808222,1721539843118,-457.76178401,0.00013698,2]
[332808224,1721539843127,-500.0,0.00013698,2]
[332808225,1721539843136,-592.72339652,0.00013698,2]
[332808226,1721539843145,-500.0,0.00013698,2]
[332808227,1721539843155,-500.0,0.00013698,2]
[332808228,1721539843168,-500.0,0.00013698,2]
[332808229,1721539843177,-500.0,0.00013698,2]
[332808231,1721539843187,-500.0,0.00013698,2]
[332808233,1721539843197,-500.0,0.00013698,2]
[332808234,1721539843207,-500.0,0.00013698,2]
[332808235,1721539843216,-513.01851565,0.00013698,2]
[332808236,1721539843226,-500.0,0.00013698,2]
[332808237,1721539843235,-500.0,0.00013698,2]
[332808238,1721539843244,-500.0,0.00013698,2]
[332808239,1721539843254,-500.0,0.00013698,2]
[332808240,1721539843263,-552.99,0.00013698,2]
[332808242,1721539843273,-500.0,0.00013698,2]
[332808244,1721539843282,-500.0,0.00013698,2]
[332808246,1721539843291,-500.0,0.00013698,2]
[332808247,1721539843300,-500.0,0.00013698,2]
[332808249,1721539843309,-500.0,0.00013698,2]
[332808251,1721539843318,-500.0,0.00013698,2]
[332808253,1721539843328,-500.0,0.00013698,2]
[332808255,1721539843338,-500.0,0.00013698,2]
[332808257,1721539843348,-500.0,0.00013698,2]
[332808259,1721539843357,-500.0,0.00013698,2]
[332808261,1721539843366,-500.0,0.00013698,2]
[332808263,1721539843377,-500.0,0.00013698,2]
[332808265,1721539843386,-500.0,0.00013698,2]
[332808267,1721539843397,-500.0,0.00013698,2]
[332808269,1721539843406,-550.42298283,0.00013698,2]
[332808272,1721539843416,-500.0,0.00013698,2]
[332808275,1721539843425,-500.0,0.00013698,2]
[332808277,1721539843435,-500.0,0.00013698,2]
[332808279,1721539843444,-500.0,0.00013698,2]
[332808281,1721539843453,-500.0,0.00013698,2]
[332808283,1721539843462,-500.0,0.00013698,2]
[332808285,1721539843472,-780.1,0.00013698,2]
[332808287,1721539843481,-500.0,0.00013698,2]
[332808289,1721539843490,-1880.82,0.00013698,2]
[332808291,1721539843500,-500.0,0.00013698,2]
[332808293,1721539843509,-500.0,0.00013698,2]
[332808295,1721539843518,-500.0,0.00013698,2]
[332808297,1721539843528,-1976.44,0.00013698,2]
[332808299,1721539843537,-833.85,0.00013698,2]
[332808301,1721539843547,-537.44918105,0.00013698,2]
[332808303,1721539843556,-617.37745255,0.00013698,2]
[332808305,1721539843566,-511.67133738,0.00013698,2]
[332808307,1721539843575,-500.0,0.00013698,2]
[332808308,1721539843584,-850.42,0.00013698,2]
[332808310,1721539843595,-500.0,0.00013698,2]
[332808312,1721539843604,-500.0,0.00013698,2]
[332808313,1721539843614,-600.01472195,0.00013698,2]
[332808315,1721539843624,-500.0,0.00013698,2]
[332808317,1721539843634,-1195.72,0.00013698,2]
[332808319,1721539843644,-500.0,0.00013698,2]
[332808321,1721539843653,-500.0,0.00013698,2]
[332808323,1721539843667,-500.0,0.00013698,2]
[332808324,1721539843676,-970.09,0.00013698,2]
[332808326,1721539843685,-500.0,0.00013698,2]
[332808328,1721539843694,-500.0,0.00013698,2]
[332808329,1721539843704,-2512.41,0.00013698,2]
[332808331,1721539843714,-528.81,0.00013698,2]
[332808333,1721539843723,-500.0,0.00013698,2]
[332808336,1721539843734,-1489.25,0.00013698,2]
[332808337,1721539843744,-500.0,0.00013698,2]
[332808339,1721539843753,-500.0,0.00013698,2]
[332808341,1721539843763,-500.0,0.00013698,2]
[332808343,1721539843773,-1693.08,0.00013698,2]
[332808344,1721539843782,-500.0,0.00013698,2]
[332808346,1721539843791,-2579.77,0.00013698,2]
[332808347,1721539843801,-668.01,0.00013698,2]
[332808349,1721539843811,-500.0,0.00013698,2]
[332808351,1721539843822,-500.0,0.00013698,2]
[332808352,1721539843832,-500.0,0.00013698,2]
[332808353,1721539843842,-500.0,0.00013698,2]
[332808354,1721539843852,-503.23587098,0.00013698,2]
[332808355,1721539843861,-550.23,0.00013698,2]
[332808356,1721539843871,-500.0,0.00013698,2]
[332808357,1721539843880,-500.0,0.00013698,2]
[332808358,1721539843890,-500.0,0.00013698,2]
[332808359,1721539843902,-500.0,0.00013698,2]
[332808360,1721539843913,-500.0,0.00013698,2]
[332808361,1721539843924,-500.0,0.00013698,2]
[332808362,1721539843934,-708.2,0.00013698,2]
[332808363,1721539843945,-500.0,0.00013698,2]
[332808364,1721539843954,-500.0,0.00013698,2]
[332808365,1721539843965,-501.33508252,0.00013698,2]
[332808366,1721539843977,-500.0,0.00013698,2]
[332808367,1721539843987,-500.0,0.00013698,2]
[332808368,1721539843996,-500.0,0.00013698,2]
[332808369,1721539844005,-500.0,0.00013698,2]
[332808370,1721539844015,-500.0,0.00013698,2]
[332808371,1721539844025,-500.0,0.00013698,2]
[332808372,1721539844034,-500.0,0.00013698,2]
[332808373,1721539844043,-500.0,0.00013698,2]
[332808374,1721539844052,-526.16960824,0.00013698,2]
[332808375,1721539844062,-3609.17,0.00013698,2]
[332808376,1721539844071,-500.0,0.00013698,2]
[332808377,1721539844080,-500.0,0.00013698,2]
[332808378,1721539844093,-519.63091483,0.00013698,2]
[332808379,1721539844102,-500.0,0.00013698,2]
[332808380,1721539844111,-500.0,0.00013698,2]
[332808381,1721539844120,-504.86194767,0.00013698,2]
[332808382,1721539844130,-500.0,0.00013698,2]
[332808383,1721539844140,-500.0,0.00013698,2]
[332808384,1721539844150,-25157.61,0.00013698,2]
[332808385,1721539844160,-25157.61,0.00013698,2]
[332808386,1721539844169,-6968.81920285,0.00013698,2]
[332808387,1721539844724,-18188.79079715,0.00013698,2]
[332808389,1721539844735,-25157.61,0.00013698,2]
[332808390,1721539844745,-25157.61,0.00013698,2]
[332808391,1721539844755,-25157.61,0.00013698,2]
[332808392,1721539844765,-25157.61,0.00013698,2]
[332808393,1721539844774,-25157.61,0.00013698,2]
[332808394,1721539844784,-25157.61,0.00013698,2]
[332808395,1721539844794,-25157.61,0.00013698,2]
[332808396,1721539844804,-25157.61,0.00013698,2]
[332808397,1721539844813,-25157.61,0.00013698,2]
[332808398,1721539844823,-500.0,0.00013698,2]
[332808399,1721539844833,-1336.62,0.00013698,2]
[332808400,1721539844843,-25157.61,0.00013698,2]
[332808401,1721539844853,-802.68,0.00013698,2]
[332808402,1721539844862,-22622.22910359,0.00013698,2]
[332808403,1721539845281,-2535.38089641,0.00013698,2]
[332808404,1721539845291,-1643.36,0.00013698,2]